bitfinex-derivatives/quotes_SOLF0:USTF0_20251002
["timestamp","ask_amount","ask_price","bid_price","bid_amount"]
[1759409752585,7.81,227.0,226.99,3.9626]
[1759409752786,7.81,227.06,226.96,7.66]
[1759409752984,7.81,227.04,226.96,9.00170399]
[1759409754083,7.81,227.04,226.98,7.81]
[1759409755486,1.34170399,227.05,227.01,3.9623]
[1759409755687,7.39,227.04,227.01,3.9623]
[1759409755880,1.34170399,227.05,227.01,3.9623]
[1759409756080,7.39,227.04,227.01,3.9623]
[1759409756276,1.34170399,227.05,227.01,3.9623]
[1759409756480,7.39,227.02,226.98,7.81]
[1759409756880,7.39,227.02,227.01,3.9623]
[1759409757381,1.34170399,227.03,227.01,3.9623]
[1759409757584,8.73170399,227.03,227.01,3.9623]
[1759409758883,7.39,227.02,227.01,3.9623]
[1759409760283,7.39,227.02,226.99,3.9629]
[1759409760489,7.39,227.06,226.99,3.9629]
[1759409760689,7.39,227.02,226.96,61.6538]
[1759409762591,1.34170399,227.03,227.0,3.9627]
[1759409762791,7.39,227.02,227.0,3.9627]
[1759409763694,1.34170399,227.03,227.02,3.9624]
[1759409765592,8.73170399,227.03,227.02,3.9624]
[1759409766391,1.34170399,227.03,227.02,3.9624]
[1759409766992,7.39,227.07,227.02,3.9624]
[1759409767192,7.39,227.04,227.02,3.9624]
[1759409768692,7.39,227.04,227.03,3.9621]
[1759409770993,1.34170399,227.06,227.04,3.962]
[1759409771196,7.39,227.06,227.04,3.962]
[1759409772700,1.34170399,227.07,227.04,3.962]
[1759409772994,7.39,227.06,227.04,3.962]
[1759409773392,1.34170399,227.07,227.04,3.962]
[1759409773696,7.39,227.06,227.04,3.962]
[1759409773897,1.34170399,227.07,227.04,3.962]
[1759409774790,7.39,227.06,227.05,3.9618]
[1759409782397,8.73170399,227.06,227.05,3.9618]
[1759409782593,7.39,227.05,227.03,3.9622]
[1759409783492,1.34170399,227.04,226.98,7.59]
[1759409783697,1.34170399,227.01,226.94,69.2464]
[1759409784701,7.85,227.0,226.99,3.9629]
[1759409788503,7.85,227.01,226.94,7.55]
[1759409791609,1.34170399,227.02,226.99,3.9629]
[1759409791808,7.85,227.01,226.99,3.9629]
[1759409792610,1.34170399,227.02,226.99,3.9629]
[1759409793004,7.85,227.01,226.99,3.9629]
[1759409793405,7.85,226.99,226.91,7.55]
[1759409793608,1.34170399,226.97,226.91,7.55]
[1759409793813,115.73,226.96,226.92,7.55]
[1759409794214,7.85,226.95,226.92,7.55]
[1759409795212,7.85,226.95,226.93,11.514]
[1759409795414,107.88,226.96,226.93,7.55]
[1759409795711,115.73,226.96,226.93,7.55]
[1759409796514,115.73,226.96,226.95,3.9637]
[1759409797808,115.73,226.96,226.93,11.514]
[1759409798014,1.34170399,226.95,226.89,7.55]
[1759409798210,7.85,226.95,226.89,7.55]
[1759409798416,7.85,226.95,226.91,3.9642]
[1759409798916,107.88,226.96,226.91,3.9642]
[1759409799211,9.19170399,226.95,226.89,3.9647]
[1759409799603,9.19170399,226.95,226.87,7.55]
[1759409799811,7.85,226.94,226.9,3.9644]
[1759409800510,1.34170399,226.95,226.9,3.9644]
[1759409800706,7.85,226.94,226.9,3.9644]
[1759409801221,1.34170399,226.95,226.9,11.5144]
[1759409801411,7.85,226.94,226.9,3.9644]
[1759409801714,1.34170399,226.95,226.9,3.9644]
[1759409802508,7.85,226.94,226.9,3.9644]
[1759409803112,1.34170399,226.95,226.9,3.9644]
[1759409803314,7.85,226.94,226.9,3.9644]
[1759409803711,1.34170399,226.95,226.9,3.9644]
[1759409804112,7.85,226.94,226.9,3.9644]
[1759409804311,107.88,226.96,226.9,3.9644]
[1759409804511,7.85,226.95,226.9,3.9644]
[1759409805012,107.88,226.96,226.9,3.9644]
[1759409805211,7.85,226.95,226.9,3.9644]
[1759409805612,107.88,226.96,226.9,3.9644]
[1759409806317,7.85,226.95,226.9,3.9644]
[1759409806517,107.88,226.96,226.9,3.9644]
[1759409806714,7.85,226.95,226.9,3.9644]
[1759409808215,107.88,226.96,226.9,3.9644]
[1759409808817,7.85,226.95,226.9,3.9644]
[1759409809017,107.88,226.96,226.9,3.9644]
[1759409809421,7.85,226.95,226.9,3.9644]
[1759409809622,107.88,226.96,226.9,3.9644]
[1759409809913,7.85,226.95,226.9,3.9644]
[1759409810120,7.85,227.01,226.91,3.9643]
[1759409810322,7.85,226.98,226.91,3.9643]
[1759409811624,7.85,226.96,226.91,3.9643]
[1759409811818,107.9,226.97,226.89,11.5147]
[1759409812024,7.85,226.96,226.89,3.9647]
[1759409812524,7.85,226.94,226.89,3.9647]
[1759409812826,7.85,226.94,226.87,3.965]
[1759409814024,0.7672296,226.93,226.87,3.965]
[1759409814214,7.14,226.92,226.87,3.965]
[1759409814422,7.14,226.9,226.87,11.245]
[1759409814621,7.14,226.9,226.79,7.28]
[1759409816627,7.14,226.9,226.83,3.9656]
[1759409820924,2.09697962,226.89,226.75,7.28]
[1759409821115,7.14,226.88,226.75,7.28]
[1759409821716,2.09697962,226.86,226.77,3.9668]
[1759409821930,7.14,226.84,226.77,3.9668]
[1759409824126,96.14,226.85,226.75,7.28]
[1759409824127,96.14,226.85,226.75,11.2471]
[1759409824431,96.14,226.85,226.7,2.09697962]
[1759409824432,7.14,226.84,226.71,7.28]
[1759409824723,7.14,226.84,226.76,3.9668]
[1759409824925,96.14,226.85,226.71,7.28]
[1759409825126,7.14,226.84,226.71,7.28]
[1759409826520,7.14,226.84,226.7,61.7245]
[1759409826721,7.14,226.82,226.72,7.28]
[1759409827425,61.6968,226.81,226.62,7.28]
[1759409827624,7.14,226.72,226.62,7.28]
[1759409827825,7.14,226.7,226.62,7.28]
[1759409828124,32.62,226.69,226.62,7.28]
[1759409828621,7.14,226.7,226.62,7.28]
[1759409828824,63.96,226.69,226.62,7.28]
[1759409830732,71.1,226.69,226.65,11.2489]
[1759409832136,63.96,226.69,226.66,7.28]
[1759409832834,71.1,226.69,226.66,7.28]
[1759409833034,63.96,226.69,226.65,3.9689]
[1759409833333,7.14,226.68,226.65,3.9689]
[1759409833528,63.96,226.69,226.65,3.9689]
[1759409833737,63.96,226.69,226.66,7.28]
[1759409833930,71.1,226.69,226.66,7.28]
[1759409834936,63.96,226.69,226.65,3.9689]
[1759409835235,7.14,226.68,226.65,11.2489]
[1759409836031,63.96,226.69,226.65,3.9689]
[1759409836231,63.96,226.69,226.68,7.28]
[1759409843737,7.14,226.75,226.68,7.28]
[1759409844439,7.14,226.75,226.64,2.09697962]
[1759409844440,7.14,226.75,226.62,7.88]
[1759409844640,7.83,226.72,226.62,7.88]
[1759409844839,7.83,226.72,226.62,69.6266]
[1759409845040,110.57668873,226.76,226.67,3.9684]
[1759409845239,7.83,226.75,226.67,3.9684]
[1759409847043,7.83,226.75,226.69,3.9682]
[1759409847344,108.52,226.74,226.69,3.9682]
[1759409848246,7.83,226.73,226.69,3.9682]
[1759409848540,108.52,226.74,226.69,3.9682]
[1759409849140,7.83,226.73,226.69,3.9682]
[1759409849338,7.83,226.73,226.7,3.9679]
[1759409849541,108.52,226.74,226.7,3.9679]
[1759409849937,7.83,226.73,226.7,3.9679]
[1759409850141,108.52,226.74,226.7,3.9679]
[1759409850750,7.83,226.73,226.7,3.9679]
[1759409850942,108.52,226.74,226.7,3.9679]
[1759409851143,7.83,226.73,226.7,3.9679]
[1759409851352,108.52,226.74,226.7,3.9679]
[1759409851648,7.83,226.73,226.7,3.9679]
[1759409851846,108.52,226.74,226.7,3.9679]
[1759409852048,7.83,226.73,226.7,3.9679]
[1759409852942,108.52,226.74,226.7,3.9679]
[1759409853144,7.83,226.73,226.7,3.9679]
[1759409853340,108.52,226.74,226.7,3.9679]
[1759409853744,7.83,226.73,226.7,3.9679]
[1759409853947,7.83,226.73,226.67,3.9684]
[1759409854144,7.83,226.73,226.66,7.88]
[1759409855552,108.52,226.74,226.69,3.9681]
[1759409855751,7.83,226.73,226.69,3.9681]
[1759409856242,108.52,226.74,226.69,3.9681]
[1759409856646,7.83,226.73,226.69,3.9681]
[1759409857347,108.52,226.74,226.69,3.9681]
[1759409857649,7.83,226.73,226.69,3.9681]
[1759409858654,108.52,226.74,226.69,3.9681]
[1759409858951,7.83,226.73,226.69,3.9681]
[1759409859155,108.52,226.74,226.69,3.9681]
[1759409860656,7.83,226.73,226.69,3.9681]
[1759409861153,108.52,226.74,226.69,3.9681]
[1759409861350,7.83,226.73,226.69,3.9681]
[1759409861554,108.52,226.74,226.69,11.8481]
[1759409861851,7.83,226.73,226.69,3.9681]
[1759409862252,108.52,226.74,226.69,3.9681]
[1759409862648,7.83,226.73,226.69,3.9681]
[1759409862853,108.52,226.74,226.69,3.9681]
[1759409863055,7.83,226.73,226.67,3.9685]
[1759409863262,7.83,226.71,226.62,7.88]
[1759409864054,2.09697962,226.72,226.67,3.9684]
[1759409864258,1.34501103,226.71,226.67,3.9684]
[1759409864458,7.83,226.7,226.67,3.9684]
[1759409864658,7.83,226.68,226.67,3.9684]
[1759409874761,18.38880311,226.76,226.67,7.81]
[1759409874962,115.49,226.75,226.67,7.81]
[1759409875458,116.83501103,226.75,226.67,7.81]
[1759409876264,116.83501103,226.75,226.71,3.9678]
[1759409877066,115.49,226.75,226.71,3.9678]
[1759409878967,108.06,226.75,226.71,3.9678]
[1759409879169,7.43,226.74,226.71,3.9678]
[1759409879368,108.06,226.75,226.71,3.9678]
[1759409879669,7.43,226.74,226.71,3.9678]
[1759409879970,108.06,226.75,226.71,3.9678]
[1759409880165,7.43,226.74,226.71,3.9678]
[1759409880469,108.06,226.75,226.71,3.9678]
[1759409881467,7.43,226.74,226.71,3.9678]
[1759409881665,7.43,226.74,226.73,3.9674]
[1759409881969,108.02,226.74,226.72,7.81]
[1759409882169,108.02,226.74,226.73,9.15501103]
[1759409882470,108.02,226.74,226.73,13.12251103]
[1759409882669,108.02,226.74,226.73,13.56251103]
[1759409883466,320.86,226.8,226.75,7.81]
[1759409883666,108.08,226.79,226.77,7.81]
[1759409884066,108.08,226.79,226.77,11.7768]
[1759409886163,108.08,226.79,226.78,7.81]
[1759409886469,108.08,226.79,226.78,9.15501103]
[1759409888675,108.08,226.79,226.78,1.34501103]
[1759409888878,115.51,226.79,226.78,1.34501103]
[1759409889073,108.08,226.79,226.78,9.15501103]
[1759409893686,108.08,226.79,226.78,7.81]
[1759409894183,107.98,226.84,226.8,61.6984]
[1759409894689,115.41,226.84,226.81,7.81]
[1759409895384,7.43,226.83,226.76,69.5169]
[1759409896490,7.43,226.83,226.77,61.7064]
[1759409896984,107.98,226.84,226.82,3.9658]
[1759409897180,0.77114525,226.84,226.83,7.81]
[1759409897383,4.909094,227.01,226.93,61.6617]
[1759409897590,0.87996,227.01,226.98,3.9631]
[1759409897786,7.43,227.0,226.98,3.9631]
[1759409897983,7.43,227.05,226.99,1.34501103]
[1759409898180,14.24,227.06,226.98,3.9631]
[1759409898380,7.43,227.03,226.99,1.34501103]
[1759409898681,14.24,227.06,226.99,1.34501103]
[1759409898682,7.43,227.05,226.99,1.34501103]
[1759409898889,7.43,227.02,226.99,1.34501103]
[1759409899085,7.43,227.02,226.96,3.9634]
[1759409899287,7.43,227.05,226.96,1.34501103]
[1759409899487,44.95228507,227.04,226.97,65.6153]
[1759409899791,52.38228507,227.03,226.97,3.9633]
[1759409900489,7.43,227.0,226.94,1.34501103]
[1759409900685,7.43,227.0,226.93,65.6267]
[1759409900888,7.43,227.0,226.93,66.97171103]
[1759409901089,7.43,227.0,226.93,65.6267]
[1759409901288,52.38228507,227.0,226.93,65.6267]
[1759409901484,44.07232507,226.99,226.93,66.97171103]
[1759409902188,44.07232507,226.99,226.93,3.9639]
[1759409902390,51.50232507,226.99,226.93,3.9639]
[1759409902587,51.50232507,226.99,226.94,3.82254841]
[1759409902886,51.68232507,226.98,226.95,3.82254841]
[1759409903193,7.61,226.97,226.96,3.82254841]
[1759409903987,52.56228507,226.97,226.96,3.82254841]
[1759409904592,7.23,227.01,226.96,65.47704841]
[1759409904796,44.07232507,227.0,226.98,1.34501103]
[1759409905093,51.30232507,227.0,226.99,3.82254841]
[1759409905391,7.23,227.0,226.99,3.82254841]
[1759409906494,7.23,227.03,227.0,3.9627]
[1759409906696,44.07232507,227.02,227.01,3.82254841]
[1759409907085,7.23,227.06,227.02,3.9624]
[1759409907291,8.10996,227.04,227.03,3.82254841]
[1759409907692,52.18228507,227.04,227.03,3.82254841]
[1759409908095,7.23,227.04,227.03,3.82254841]
[1759409908296,7.23,227.06,227.04,3.9621]
[1759409908488,44.07232507,227.06,227.05,3.82254841]
[1759409908688,116.30996,227.07,227.05,3.82254841]
[1759409908896,44.07232507,227.06,227.05,3.9619]
[1759409909096,44.07232507,227.06,227.05,7.7695071]
[1759409909398,116.30996,227.07,227.05,7.7695071]
[1759409909602,44.07232507,227.06,227.05,3.9619]
[1759409909799,44.07232507,227.06,227.05,7.76630886]
[1759409909995,7.23,227.06,227.05,7.76630886]
[1759409911294,51.30232507,227.06,227.05,3.80440886]
[1759409912391,0.87996,227.06,227.05,3.80440886]
[1759409912590,7.23,227.11,227.05,5.14941989]
[1759409912796,52.18228507,227.09,227.06,3.80440886]
[1759409912997,44.95228507,227.09,227.08,3.9614]
[1759409913193,108.14,227.12,227.08,3.80440886]
[1759409913400,7.23,227.18,227.09,65.42400886]
[1759409913598,44.95228507,227.14,227.12,3.9605]
[1759409913797,44.95228507,227.14,227.13,3.80440886]
[1759409914500,52.18228507,227.14,227.13,3.80440886]
[1759409914996,160.38228507,227.14,227.13,3.80440886]
[1759409915193,52.18228507,227.14,227.13,3.80440886]
[1759409919005,160.46228507,227.14,227.13,3.80440886]
[1759409919606,159.58232507,227.14,227.13,3.80440886]
[1759409920002,152.35232507,227.14,227.13,3.80440886]
[1759409920303,160.46228507,227.14,227.13,3.80440886]
[1759409920496,159.58232507,227.14,227.13,3.80440886]
[1759409920701,152.35232507,227.14,227.13,3.80440886]
[1759409920998,159.58232507,227.14,227.13,3.80440886]
[1759409921705,159.58232507,227.14,227.13,7.76490886]
[1759409922306,109.15996,227.14,227.13,7.76490886]
[1759409925101,0.87996,227.14,227.13,7.76490886]
[1759409925905,7.23,227.27,227.2,61.5895]
[1759409926106,8.10996,227.32,227.27,61.5686]
[1759409926306,0.76583664,227.42,227.35,61.549]
[1759409926503,0.76583664,227.42,227.36,3.80440886]
[1759409926504,36.94106327,227.4,227.36,3.80440886]
[1759409926702,36.94106327,227.4,227.37,3.6660409]
[1759409927002,36.94106327,227.4,227.31,5.70224162]
[1759409927003,36.94106327,227.4,227.38,3.6660409]
[1759409927303,84.87,227.48,227.39,3.6660409]
[1759409927503,0.87996,227.39,227.32,61.5563]
[1759409927709,36.06110327,227.4,227.35,61.5485]
[1759409927908,36.94106327,227.4,227.36,3.6625554]
[1759409928106,36.94106327,227.4,227.37,7.6187554]
[1759409928313,44.12,227.44,227.38,3.6625554]
[1759409928513,36.06110327,227.4,227.39,3.6625554]
[1759409928714,7.23,227.4,227.39,3.46241375]
[1759409928908,44.17106327,227.4,227.29,3.6099832]
[1759409929101,36.06110327,227.35,227.29,61.565]
[1759409929311,93.93,227.34,227.29,3.9576]
[1759409929508,87.57996,227.34,227.29,3.9576]
[1759409929707,43.29110327,227.33,227.27,2.09225842]
[1759409929907,43.29110327,227.33,227.26,3.9582]
[1759409930212,7.23,227.29,227.26,3.9582]
[1759409930412,116.61,227.29,227.26,3.9582]
[1759409931614,36.06110327,227.28,227.22,61.5834]
[1759409931814,109.36,227.27,227.22,61.5834]
[1759409932013,36.94106327,227.28,227.22,61.5834]
[1759409932210,36.94106327,227.28,227.21,65.1960832]
[1759409932211,36.06110327,227.28,227.25,3.9584]
[1759409932413,41.72,227.27,227.25,3.9584]
[1759409932614,36.06110327,227.29,227.23,61.5806]
[1759409933015,46.9,227.3,227.27,3.958]
[1759409933314,36.06110327,227.29,227.27,3.958]
[1759409933715,47.77996,227.3,227.27,3.958]
[1759409934015,36.06110327,227.29,227.27,3.958]
[1759409934415,47.77996,227.3,227.27,3.958]
[1759409934715,47.77996,227.3,227.23,61.5806]
[1759409934716,43.75110327,227.29,227.24,3.9585]
[1759409934917,36.06110327,227.28,227.24,3.9585]
[1759409935215,7.69,227.26,227.24,3.9585]
[1759409937217,54.59,227.3,227.24,3.9585]
[1759409937417,54.59,227.3,227.26,3.9582]
[1759409937418,0.87996,227.27,227.26,3.9582]
[1759409937718,7.69,227.35,227.25,61.5758]
[1759409937914,36.06110327,227.31,227.25,61.5758]
[1759409938115,36.06110327,227.31,227.22,61.5831]
[1759409938116,7.69,227.31,227.22,61.5831]
[1759409938319,36.94106327,227.28,227.22,61.5831]
[1759409939017,36.94106327,227.28,227.19,67.41215647]
[1759409939018,7.69,227.33,227.23,3.9586]
[1759409939218,36.06110327,227.26,227.23,3.9586]
[1759409939719,7.69,227.29,227.23,3.9586]
[1759409939914,36.06110327,227.26,227.23,3.9586]
[1759409940115,43.75110327,227.26,227.23,3.9586]
[1759409940320,7.69,227.26,227.23,3.9586]
[1759409940521,66.4941525,227.43,227.21,61.5853]
[1759409940522,51.42,227.29,227.26,3.9581]
[1759409940722,69.39996,227.29,227.26,3.9581]
[1759409941010,88.76,227.31,227.23,61.5792]
[1759409941217,36.06110327,227.29,227.23,61.5792]
[1759409941712,116.99,227.32,227.29,3.9576]
[1759409942018,52.37992647,227.52,227.32,61.557]
[1759409942019,7.69,227.38,227.32,61.557]
[1759409942819,36.06110327,227.37,227.32,61.557]
[1759409943218,43.75110327,227.37,227.32,61.557]
[1759409943623,43.75110327,227.37,227.35,3.9565]
[1759409946827,36.06110327,227.37,227.35,3.9565]
[1759409947126,7.69,227.4,227.38,3.956]
[1759409947318,109.3,227.4,227.38,3.956]
[1759409947521,43.75110327,227.39,227.38,3.956]
[1759409949721,109.3,227.4,227.38,3.956]
[1759409950427,7.69,227.44,227.41,3.9556]
[1759409950627,0.87996,227.43,227.38,61.5402]
[1759409950926,36.06110327,227.43,227.38,61.5402]
[1759409951123,117.80996,227.44,227.38,61.5402]
[1759409951321,36.06110327,227.43,227.38,61.5402]
[1759409951531,7.69,227.4,227.39,3.9559]
[1759409951727,43.75110327,227.4,227.39,3.9559]
[1759409951928,7.69,227.4,227.39,3.9559]
[1759409952321,7.69,227.45,227.41,3.9556]
[1759409952527,7.69,227.43,227.36,61.5464]
[1759409952726,36.06110327,227.39,227.36,61.5464]
[1759409953227,109.26,227.44,227.4,3.9557]
[1759409953730,44.63106327,227.41,227.4,3.9557]
[1759409953926,36.94106327,227.41,227.37,3.9562]
[1759409954132,109.26,227.44,227.32,61.5569]
[1759409954133,36.94106327,227.38,227.32,61.5569]
[1759409954524,36.94106327,227.38,227.33,61.5539]
[1759409954829,7.69,227.42,227.35,61.5484]
[1759409955030,36.06110327,227.39,227.35,61.5484]
[1759409955529,7.69,227.42,227.41,3.9556]
[1759409956124,43.75110327,227.42,227.41,3.9556]
[1759409959729,152.93110327,227.42,227.41,3.9556]
[1759409959931,152.89110327,227.42,227.41,3.9556]
[1759409964633,7.53,227.41,227.39,3.956]
[1759409964833,146.08106327,227.42,227.39,3.956]
[1759409964834,43.59110327,227.4,227.39,3.956]
[1759409965034,44.47106327,227.4,227.32,61.5569]
[1759409965235,36.06110327,227.38,227.32,61.5569]
[1759409965437,36.94106327,227.38,227.32,61.5569]
[1759409965632,0.87996,227.38,227.32,61.5569]
[1759409965931,108.98,227.39,227.35,3.9565]
[1759409965932,7.53,227.36,227.35,3.9565]
[1759409966132,152.59110327,227.36,227.35,3.9565]
[1759409966330,117.40996,227.36,227.35,3.9565]
[1759409967826,109.0,227.36,227.35,3.9565]
[1759409968131,7.53,227.41,227.4,3.9558]
[1759409968331,116.49,227.41,227.4,3.9558]
[1759409968538,153.43106327,227.41,227.4,3.9558]
[1759409969237,44.47106327,227.41,227.4,3.9558]
[1759409969470,153.43106327,227.41,227.4,3.9558]
[1759409970231,153.43106327,227.41,227.38,3.9561]
[1759409970437,7.53,227.39,227.38,3.9561]
[1759409970735,44.47106327,227.39,227.38,3.9561]
[1759409972433,44.47106327,227.39,227.33,61.5542]
[1759409972434,8.40996,227.39,227.31,61.5588]
[1759409972636,108.9,227.38,227.31,61.5588]
[1759409973130,116.43,227.37,227.36,3.9564]
[1759409973537,153.37106327,227.37,227.36,3.9564]
[1759409973732,153.37106327,227.37,227.29,63.82473073]
[1759409973933,7.53,227.36,227.34,3.9568]
[1759409974338,108.9,227.37,227.34,3.9568]
[1759409974536,7.53,227.36,227.34,3.9568]
[1759409975033,7.53,227.36,227.3,61.5623]
[1759409975034,7.53,227.36,227.35,3.9565]
[1759409975240,116.43,227.37,227.35,3.9565]
[1759409975434,108.84,227.36,227.35,3.9565]
[1759409976338,116.37,227.36,227.35,3.9565]
[1759409976640,152.43110327,227.36,227.35,3.9565]
[1759409978545,7.53,227.35,227.26,61.572]
[1759409978741,0.87996,227.27,227.2,73.1164832]
[1759409978939,116.33,227.26,227.2,69.5065]
[1759409979337,108.8,227.26,227.25,3.9584]
[1759409979538,8.29572711,227.36,227.29,61.5645]
[1759409979738,0.87996,227.33,227.29,61.5645]
[1759409980044,37.26,227.32,227.3,3.9575]
[1759409981647,7.53,227.36,227.35,3.9567]
[1759409986140,70.77,227.39,227.38,3.9561]
[1759409986545,107.71106327,227.39,227.38,3.9561]
[1759409987354,107.71106327,227.39,227.36,3.9565]
[1759409987558,43.59110327,227.37,227.36,3.9565]
[1759409987754,44.47106327,227.37,227.36,3.9565]
[1759409994663,153.13106327,227.37,227.36,3.9565]
[1759409999261,153.03106327,227.37,227.36,3.9565]
[1759409999564,7.36,227.36,227.25,3.6099832]
[1759409999862,43.42110327,227.32,227.27,61.5692]
[1759410000067,49.32,227.31,227.3,3.9575]
[1759410000563,7.36,227.34,227.33,3.9569]
[1759410000767,0.87996,227.36,227.32,61.5571]
[1759410000968,36.06110327,227.36,227.32,63.00482626]
[1759410001270,7.36,227.37,227.32,63.00482626]
[1759410001470,36.06110327,227.36,227.35,3.9565]
[1759410001963,43.42110327,227.36,227.35,3.9565]
[1759410003770,0.76559234,227.44,227.38,3.9561]
[1759410003771,7.36,227.41,227.38,3.9561]
[1759410004166,7.36,227.4,227.39,3.9559]
[1759410004472,44.30106327,227.4,227.39,3.9559]
[1759410007067,7.36,227.39,227.37,3.9563]
[1759410007271,36.94106327,227.4,227.37,3.9563]
[1759410007469,7.36,227.39,227.34,3.9567]
[1759410007670,0.87996,227.36,227.34,3.9567]
[1759410007974,7.36,227.35,227.34,3.9567]
[1759410008775,7.36,227.39,227.38,3.9562]
[1759410008975,43.53996,227.39,227.38,3.9562]
[1759410009273,42.66,227.39,227.38,3.9562]
[1759410009474,7.36,227.39,227.38,3.9562]
[1759410011383,30.36,227.41,227.4,3.9557]
[1759410011576,7.36,227.44,227.38,1.44772626]
[1759410011775,36.94106327,227.43,227.38,1.44772626]
[1759410012172,44.30106327,227.43,227.38,1.44772626]
[1759410012369,7.36,227.42,227.34,3.6099832]
[1759410012570,110.04772626,227.45,227.37,1.44772626]
[1759410012571,117.40772626,227.45,227.37,1.44772626]
[1759410012773,0.76542395,227.49,227.37,1.44772626]
[1759410012774,7.36,227.41,227.37,61.5435]
[1759410012980,7.36,227.41,227.37,62.99122626]
[1759410013279,36.06110327,227.4,227.35,61.5481]
[1759410013480,43.42110327,227.4,227.35,61.5481]
[1759410013681,8.80772626,227.44,227.36,1.44772626]
[1759410013977,44.30106327,227.41,227.36,5.05770946]
[1759410014176,44.30106327,227.41,227.36,1.44772626]
[1759410014376,8.23996,227.41,227.36,1.44772626]
[1759410014579,8.23996,227.41,227.4,3.9558]
[1759410014878,7.36,227.4,227.34,5.05770946]
[1759410015079,36.06110327,227.36,227.31,3.6099832]
[1759410015373,7.36,227.35,227.3,5.05770946]
[1759410015572,36.94106327,227.35,227.3,3.6099832]
[1759410015874,7.36,227.31,227.26,3.6099832]
[1759410016284,7.36,227.32,227.26,3.6099832]
[1759410016472,43.42110327,227.32,227.26,3.6099832]
[1759410016669,8.23996,227.31,227.29,3.9577]
[1759410016881,7.36,227.28,227.25,3.6099832]
[1759410017077,7.36,227.28,227.26,3.9581]
[1759410017377,7.36,227.31,227.26,3.9581]
[1759410017568,1.44772626,227.32,227.26,3.9581]
[1759410017767,36.94106327,227.28,227.26,3.9581]
[1759410017972,44.30106327,227.28,227.26,3.9581]
[1759410018170,7.36,227.28,227.26,3.9581]
[1759410018980,0.87996,227.28,227.26,3.9581]
[1759410019171,7.36,227.27,227.26,3.9581]
[1759410019776,7.36,227.27,227.24,3.6099832]
[1759410019983,7.36,227.29,227.23,3.9586]
[1759410020181,36.94106327,227.26,227.23,3.9586]
[1759410020476,7.36,227.23,227.2,3.9591]
[1759410020674,61.537,227.4,227.19,5.05770946]
[1759410020675,0.87996,227.26,227.21,1.44772626]
[1759410021071,0.87996,227.26,227.24,3.9586]
[1759410021281,8.23996,227.26,227.24,3.9586]
[1759410021683,7.36,227.25,227.24,3.9586]
[1759410021875,7.36,227.24,227.21,3.959]
[1759410022080,8.23996,227.24,227.21,3.959]
[1759410022278,1.44772626,227.3,227.2,1.44772626]
[1759410022473,51.26,227.31,227.19,61.591]
[1759410022474,44.30106327,227.25,227.19,61.591]
[1759410022678,36.94106327,227.25,227.21,1.44772626]
[1759410022883,8.21996,227.25,227.21,1.44772626]
[1759410023084,0.87996,227.25,227.21,1.44772626]
[1759410023384,7.34,227.24,227.21,1.44772626]
[1759410023581,7.34,227.24,227.23,3.9586]
[1759410023786,43.40110327,227.24,227.23,3.9586]
[1759410023984,44.28106327,227.24,227.23,3.9586]
[1759410024184,36.94106327,227.24,227.2,5.40692626]
[1759410024386,7.27,227.23,227.2,5.40692626]